Cogmind - Beta 14 @@@ ROGUE MODE // 2024.08.24 @ 13:38:12 Player: cabin Result: Destroyed self with Improved Grenade Launcher Performance ------------- Evolutions (3) 1500 Regions Visited (5) 1000 Robots Destroyed (16) 80 Value Destroyed (509) 509 Prototype IDs (1) 20 Alien Tech Used (0) 0 Bonus (200) 200 TOTAL SCORE: 3309 Bonus ------- Entered Garrisons 200 Cogmind --------- Core Integrity 0/700 Matter 129/450 Energy 19/100 System Corruption 8% Temperature Cool (16) Movement Core (150) Ox2 Location -7/Garrison Parts ------- > --- POWER (3) -------- (None) > --- PROPULSION (2) --- (None) > --- UTILITY (3) ------ Compact Matter Pod > --- WEAPON (5) ------- Improved Grenade Launcher > --- INVENTORY (5) ---- Deuterium Engine Peak State ------------ > --- POWER ------------ Cooled Deuterium Engine Cooled Deuterium Engine > --- PROPULSION ------- Xenon Bombardment Thruster Xenon Bombardment Thruster > --- UTILITY ---------- Matter Filter > --- WEAPON ----------- Assault Cannon Assault Cannon > --- INVENTORY -------- Ion Engine Aluminum Leg Carbon-fiber Leg Assault Cannon [Rating: 28] Favorites ----------- Power Ion Engine Engine Ion Engine Propulsion Aluminum Leg Leg Aluminum Leg Flight Unit Xenon Bombardment Thruster Utility Light Armor Plating Device Heat Sink Storage Small Storage Unit Protection Light Armor Plating Weapon Assault Cannon Energy Gun Heavy EM Pulse Gun Energy Cannon Plasma Cannon Ballistic Gun Light Assault Rifle Ballistic Cannon Assault Cannon Launcher Improved Grenade Launcher Build | -11 -10 -9 -8 -7 -7 ------- Run | Yrd Mat Mat Mat Fac Gar Slots Evolved 6 | . . 2 2 2 . Power 2 | . . . 1 1 . Propulsion . | . . . . . . Utility 1 | . . . 1 . . Weapon 3 | . . 2 . 1 . Parts Attached 43 | 6 1 11 20 . 5 Power 7 | 1 . . 5 . 1 Engine 7 | 1 . . 5 . 1 Core . | . . . . . . Reactor . | . . . . . . Propulsion 11 | 2 . 3 6 . . Treads . | . . . . . . Leg 8 | 2 . 2 4 . . Wheel . | . . . . . . Hover . | . . . . . . Flight 3 | . . 1 2 . . Utility 9 | 1 1 2 3 . 2 Device 3 | . 1 . 1 . 1 Storage 2 | 1 . . . . 1 Processor . | . . . . . . Hackware . | . . . . . . Protection 4 | . . 2 2 . . Artifact . | . . . . . . Weapon 16 | 2 . 6 6 . 2 Energy Gun 2 | . . 2 . . . Energy Cannon 1 | . . . . . 1 Ballistic Gun 3 | 2 . . 1 . . Ballistic Cannon 9 | . . 4 5 . . Launcher 1 | . . . . . 1 Special Weapon . | . . . . . . Impact Weapon . | . . . . . . Slashing Weapon . | . . . . . . Piercing Weapon . | . . . . . . Special Melee Weapon . | . . . . . . Unidentified Prototypes 1 | . . . 1 . . Parts Lost 21 | . . 9 4 . 8 Power 5 | . . 1 1 . 3 Propulsion 7 | . . 3 3 . 1 Utility 3 | . . 1 . . 2 Weapon 6 | . . 4 . . 2 Highest Loss Streak 7 | . . 7 3 . 7 To Critical Strikes 1 | . . . . . 1 Average Slot Usage (%) 56 | . 97 57 49 46 30 Engine 12 | . 14 7 13 15 12 Leg 12 | . 28 13 7 7 5 Flight 1 | . . . 6 . . Device 4 | . 11 7 . . . Storage 3 | . 14 . . . . Protection 4 | . . 8 4 7 4 Ballistic Gun 10 | . 28 11 2 7 5 Ballistic Cannon 5 | . . 5 13 8 . Peak Build Rating 28 | 6 7 11 28 16 11 Average Rating 9 | 5 6 6 15 13 8 On Entrance 6 | . 6 7 1 15 10 Naked Turns 19 | . . 1 9 . 9 Heaviest Build 35 | 11 12 16 35 31 29 Greatest Support 25 | 20 20 20 25 15 15 Greatest Overweight (x) 9 | 1 . 5 9 2 9 Average Overweight (x) . | . . . . 1 . Largest Inventory Capacity 8 | 8 8 8 5 5 5 Average Capacity 5 | 7 8 5 5 5 5 Most Carried 5 | . 3 5 5 5 5 Average Carried 2 | . 2 4 2 4 4 Final Capacity 8 | 8 8 5 5 5 5 Final Carried 5 | . 3 5 3 5 1 Class Distribution -------------------- 64% | Mutant 25% | Scavenger-Mutant 6% | Scavenger-Tank 3% | Tank Dominant Class ---------------- Mutant | -10/Materials Mutant | -9/Materials Mutant | -8/Materials Scavenger-Mutant | -7/Factory Scavenger-Mutant | -7/Garrison Resources | -11 -10 -9 -8 -7 -7 ----------- Run | Yrd Mat Mat Mat Fac Gar Matter Collected 670 | 194 56 51 219 . 150 Remotely . | . . . . . . Salvage Created 455 | . 133 111 180 . 31 Parts 36 | . 13 6 10 . 7 Haulers Intercepted . | . . . . . . Recyclers Shooed 1 | . 1 . . . . Parts Field Recycled . | . . . . . . Retrieved Matter . | . . . . . . Parts Self-Destructed . | . . . . . . Prevented . | . . . . . . Kills | -11 -10 -9 -8 -7 -7 ------- Run | Yrd Mat Mat Mat Fac Gar Combat Hostiles Destroyed 15 | . 3 5 4 . 3 Guns 5 | . 3 2 . . . Cannons 6 | . . 2 4 . . AOE 3 | . . . . . 3 Classes Destroyed 6 | . 2 2 2 . . Watcher 1 | . 1 . . . . Swarmer 5 | . . 2 . . 3 Grunt 7 | . 3 2 2 . . Brawler 1 | . . . 1 . . Duelist 1 | . . 1 . . . Sentry 1 | . . . 1 . . Best Kill Streak 4 | . 2 3 4 . 3 Combat Bots Only 4 | . 1 3 4 . 3 Max Kills in Single Turn 2 | . 1 1 1 . 2 Gunslinging . | . . . . . . Exploded 2 | . . . . . 2 Melee . | . . . . . . Uniques/NPCs Destroyed . | . . . . . . Combat | -11 -10 -9 -8 -7 -7 -------- Run | Yrd Mat Mat Mat Fac Gar Hostile Shots Fired 326 | . 10 93 86 . 137 Missed 110 | . 4 30 26 . 50 Damage Taken 3124 | . 69 822 928 . 1305 Core 1161 | . . 145 303 . 713 Absorbed by Shields 72 | . . . . . 72 Redirected to Shielding 17 | . . 17 . . . Core Remaining (%) 76 | 100 100 63 44 . . Volleys Fired 52 | . 10 24 15 . 3 Largest 4 | . 2 4 3 . 2 Hottest 152 | . 40 152 111 . 103 Shots Fired 113 | . 20 54 35 . 4 Gun 67 | . 20 39 7 . 1 Cannon 44 | . . 15 28 . 1 Launcher 2 | . . . . . 2 Special . | . . . . . . Kinetic 101 | . 20 45 35 . 1 Thermal 1 | . . . . . 1 Explosive 2 | . . . . . 2 Electromagnetic 9 | . . 9 . . . Robot Hit Streak 9 | . 3 9 4 . 3 Robot Miss Streak 5 | . 5 4 5 . 1 Penetration Max . | . . . . . . Secondary Targets . | . . . . . . Shots Hit Robots 60 | . 8 33 16 . 3 Core Hits 29 | . 7 10 7 . 5 Critical Kills 1 | . 1 . . . . Critical Parts Destroyed . | . . . . . . Critical Strikes 3 | . 1 2 . . . Destroy 1 | . 1 . . . . Blast 1 | . . 1 . . . Corrupt 1 | . . 1 . . . Melee Attacks . | . . . . . . Impact . | . . . . . . Slashing . | . . . . . . Piercing . | . . . . . . Sneak Attacks . | . . . . . . Combat Hostiles . | . . . . . . Follow-up Attacks . | . . . . . . Damage Inflicted 1315 | 3 115 490 396 . 311 Guns 431 | . 108 287 36 . . Cannons 589 | . . 203 360 . 26 Explosions 273 | . . . . . 273 Melee . | . . . . . . Ramming 22 | 3 7 . . . 12 Kinetic 880 | . 108 376 396 . . Thermal 26 | . . . . . 26 Explosive 273 | . . . . . 273 Electromagnetic 114 | . . 114 . . . Impact . | . . . . . . Slashing . | . . . . . . Piercing . | . . . . . . Highest Corruption 8 | . . . . . 8 Average Corruption 8 | . . . . . 8 Corruption Purged . | . . . . . . Corruption Blocked . | . . . . . . Effects 2 | . . . . . 2 Heat Flow Errors 2 | . . . . . 2 Overload Shots . | . . . . . . Overflow Damage 15 | . . 1 . . 14 Projectiles 1 | . . 1 . . . Explosions 14 | . . . . . 14 Melee . | . . . . . . Knockbacks 7 | . . 2 5 . . Impact . | . . . . . . Kinetic 6 | . . 2 4 . . Secondary 1 | . . . 1 . . Self-Inflicted Damage 110 | . . . . . 110 Shots 2 | . . . . . 2 Rammed 2 | . . . . . 2 Targets Rammed 9 | 1 3 . . . 5 Kicked 7 | 1 3 . . . 3 Crushed . | . . . . . . Highest Temperature 456 | . . 240 456 . 100 Average Temperature 117 | . . 70 160 . 41 Received Heat Transfer 1299 | . 36 156 549 . 558 Effects 5 | . . . 5 . . Shutdowns 3 | . . . 3 . . Interference 1 | . . . 1 . . Short Circuit 1 | . . . 1 . . Siege Activations . | . . . . . . Robots Corrupted . | . . . . . . Combat Hostiles . | . . . . . . Parts Fried . | . . . . . . Impact Corruptions . | . . . . . . Robots Melted . | . . . . . . Combat Hostiles . | . . . . . . Parts Melted . | . . . . . . Heat Transferred 50 | . . . . . 50 Parts Sabotaged . | . . . . . . Parts Stolen . | . . . . . . Parts Stripped . | . . . . . . Power Chain Reactions . | . . . . . . Alert | -11 -10 -9 -8 -7 -7 ------- Run | Yrd Mat Mat Mat Fac Gar Peak Influence 380 | . 151 200 380 182 288 Initial 168 | . . 63 79 168 127 Average 126 | . 65 124 200 168 124 Maximum Alert Level 1 | . . 1 1 . 1 Low Security (%) 89 | 100 100 97 61 100 96 Level 1 10 | . . 2 38 . 3 Level 2 . | . . . . . . Level 3 . | . . . . . . Level 4 . | . . . . . . Level 5 . | . . . . . . High Security . | . . . . . . Max Security . | . . . . . . Squads Dispatched 2 | . 2 . . . . Investigation 1 | . 1 . . . . Extermination . | . . . . . . Reinforcement 1 | . 1 . . . . Assault . | . . . . . . Garrison . | . . . . . . Intercept . | . . . . . . Searches Triggered . | . . . . . . Construction Impeded . | . . . . . . Haulers Reinforced . | . . . . . . Active Scanning Responses . | . . . . . . Cargo Convoy Interrupts . | . . . . . . Stealth | -11 -10 -9 -8 -7 -7 --------- Run | Yrd Mat Mat Mat Fac Gar Distress Signals 2 | . . . 2 . . Communications Jammed . | . . . . . . Distress Signals . | . . . . . . Times Spotted 58 | . 6 18 17 . 17 Peak Tracking Total 16 | . 2 8 13 . 16 Tactical Retreats 9 | . . 3 3 . 3 Traps | -11 -10 -9 -8 -7 -7 ------- Run | Yrd Mat Mat Mat Fac Gar Traps Triggered 5 | . . 1 . . 4 Indirectly . | . . . . . . Trap Hack Attempts . | . . . . . . Triggered . | . . . . . . Disarmed . | . . . . . . Reprogrammed . | . . . . . . Reused . | . . . . . . Traps Extracted . | . . . . . . Installed . | . . . . . . Triggered . | . . . . . . Machines | -11 -10 -9 -8 -7 -7 ---------- Run | Yrd Mat Mat Mat Fac Gar Machines Disabled . | . . . . . . Max in Single Turn . | . . . . . . Machines Repaired . | . . . . . . Machines Dismantled . | . . . . . . Machines Sabotaged . | . . . . . . Overloaded Fab Kills . | . . . . . . Hacking | -11 -10 -9 -8 -7 -7 --------- Run | Yrd Mat Mat Mat Fac Gar Machines Accessed 3 | . 1 1 . 1 . Terminals 2 | . 1 1 . . . Fabricators . | . . . . . . Repair Stations . | . . . . . . Recycling Units . | . . . . . . Scanalyzers . | . . . . . . Garrison Access 1 | . . . . 1 . Total Hacks 6 | . 4 1 . 1 . Successful 3 | . 1 1 . 1 . Failed 3 | . 3 . . . . Catastrophic 1 | . 1 . . . . Database Lockouts . | . . . . . . Manual 1 | . 1 . . . . Terminals 5 | . 4 1 . . . Fabricators . | . . . . . . Repair Stations . | . . . . . . Recycling Units . | . . . . . . Scanalyzers . | . . . . . . Garrison Access 1 | . . . . 1 . Terminal Hacks 2 | . 1 1 . . . Emergency Access Points 1 | . 1 . . . . Alert Level 1 | . . 1 . . . Fabricator Hacks . | . . . . . . Repair Station Hacks . | . . . . . . Recycling Unit Hacks . | . . . . . . Scanalyzer . | . . . . . . Garrison Access Hacks 1 | . . . . 1 . Unlock Access 1 | . . . . 1 . Unauthorized Hacks . | . . . . . . Terminals . | . . . . . . Fabricators . | . . . . . . Repair Stations . | . . . . . . Recycling Units . | . . . . . . Scanalyzers . | . . . . . . Garrison Access . | . . . . . . Data Cores Recovered . | . . . . . . Used . | . . . . . . Hacking Detections 1 | . 1 . . . . Full Trace Events 1 | . 1 . . . . Feedback Events . | . . . . . . Feedback Blocked . | . . . . . . Robot Schematics Acquired . | . . . . . . Robots Built . | . . . . . . Authchips . | . . . . . . Time . | . . . . . . Total Robot Build Rating . | . . . . . . Part Schematics Acquired . | . . . . . . Parts Built . | . . . . . . Authchips . | . . . . . . Time . | . . . . . . Total Part Build Rating . | . . . . . . Parts Repaired . | . . . . . . Time . | . . . . . . Parts Recycled . | . . . . . . Recycled Matter . | . . . . . . Retrieved Matter . | . . . . . . Retrieved Components . | . . . . . . Parts Scanalyzed . | . . . . . . Part Schematics Acquired . | . . . . . . Parts Damaged . | . . . . . . Bothacking | -11 -10 -9 -8 -7 -7 ------------ Run | Yrd Mat Mat Mat Fac Gar Used RIF Installer . | . . . . . . Robots Hacked . | . . . . . . Non-combat . | . . . . . . Combat . | . . . . . . Robot Hacks Applied . | . . . . . . Relay Couplers Released . | . . . . . . Fabnet Peak Effective % . | . . . . . . Robots Rewired . | . . . . . . Allies Hacked . | . . . . . . Hacks Repelled . | . . . . . . Allies | -11 -10 -9 -8 -7 -7 -------- Run | Yrd Mat Mat Mat Fac Gar Total Allies . | . . . . . . Largest Group . | . . . . . . Highest-Rated Group . | . . . . . . Highest-Rated Ally . | . . . . . . Total Orders . | . . . . . . Ally Attacks . | . . . . . . Total Damage . | . . . . . . Kills . | . . . . . . Allies Corrupted . | . . . . . . Allies Melted . | . . . . . . Intel | -11 -10 -9 -8 -7 -7 ------- Run | Yrd Mat Mat Mat Fac Gar Robot Analysis Total . | . . . . . . Derelict Logs Recovered . | . . . . . . Drone Launches . | . . . . . . Drone Recoveries . | . . . . . . Exploration | -11 -10 -9 -8 -7 -7 ------------- Run | Yrd Mat Mat Mat Fac Gar Turns Passed 1320 | 114 243 232 334 138 259 Spaces Moved 834 | 88 173 141 214 59 159 Core 120 | 16 . 10 20 . 74 Treads . | . . . . . . Legs 532 | 72 173 79 64 59 85 Wheels . | . . . . . . Hover . | . . . . . . Flight 182 | . . 52 130 . . Fastest Speed 37 | 50 120 40 37 190 50 Average Speed 124 | 112 120 95 117 226 132 Slowest Speed 500 | 120 120 300 500 260 500 Overloaded Moves . | . . . . . . Propulsion Burnouts . | . . . . . . Robots Hopped 6 | . . 1 5 . . Cave-ins Triggered . | . . . . . . Exploration Rate (%) 19 | 4 38 18 24 2 32 Regions Visited 5 Branch Regions . Pre-discovered Areas . | . . . . . . Known Exits Taken 1 | . . . . 1 . Unknown Exits Taken 4 | 1 1 1 1 . . Scrap Searched . | . . . . . . Spaces Dug . | . . . . . . Terrain Destroyed 21 | . . 2 5 . 14 Melee . | . . . . . . Projectile 7 | . . 2 5 . . AOE 14 | . . . . . 14 Terrain Rammed . | . . . . . . Walls Destroyed . | . . . . . . Machines Disabled . | . . . . . . Actions | -11 -10 -9 -8 -7 -7 --------- Run | Yrd Mat Mat Mat Fac Gar Total 1010 | 100 189 195 262 66 198 Wait 25 | 6 . 7 6 . 6 Move 817 | 87 172 138 203 58 159 Hop 6 | . . 1 5 . . Pick Up 12 | . 3 2 3 4 . Fast Attach 28 | 6 1 10 10 . 1 Attach 15 | . . 1 10 . 4 Detach 11 | . . 5 6 . . Swap . | . . . . . . Drop 15 | . . 7 4 4 . Fire 52 | . 10 24 15 . 3 Melee . | . . . . . . Ram 2 | . . . . . 2 Kick 7 | 1 3 . . . 3 Crush . | . . . . . . Escape Stasis 20 | . . . . . 20 Rewire . | . . . . . . Trap . | . . . . . . Miscellaneous . | . . . . . . Route ------- -11/Scrapyard -10/Materials -9/Materials -8/Materials -7/Factory -7/Garrison History --------- Turn | Location | Event 16 | -11/Scrapyard | Discovered new exit (range 15) 115 | -11/Scrapyard | Entered Materials 308 | -10/Materials | Build established: Mutant 335 | -10/Materials | Discovered new exit (range 5) 358 | -10/Materials | Entered another Materials area 358 | -9/Materials | Evolved 2 slots: Weapon x2 564 | -9/Materials | Lost 7 parts (1p2n1u3w) 584 | -9/Materials | Discovered new exit (range 16) 590 | -9/Materials | Entered another Materials area 590 | -8/Materials | Evolved 2 slots: Power x1, Utility x1 799 | -8/Materials | Lost 3 parts (1p2n) 858 | -8/Materials | Discovered new exit (range 9) 907 | -8/Materials | Core integrity fell below 50% 924 | -8/Materials | Entered Factory 924 | -7/Factory | Evolved 2 slots: Power x1, Weapon x1 1060 | -7/Factory | Identified exit to Garrison 1062 | -7/Factory | Entered Garrison 1200 | -7/Garrison | Build established: Scavenger-Mutant 1280 | -7/Garrison | Triggered checkpoint 1282 | -7/Garrison | Core integrity fell below 50% 1298 | -7/Garrison | Core integrity fell below 20% 1303 | -7/Garrison | Lost 7 parts (3p1n1u2w) 1321 | -7/Garrison | Destroyed self with Improved Grenade Launcher Last Messages --------------- 01272_ Rnf. Ion Engine destroyed. 01272_ Deuterium Engine destroyed. 01272_ Plasma Cannon destroyed. 01272_ System corrupted by crushing effect (+4). 01272_ System corrupted by crushing effect (+1). 01272_ System corrupted by crushing effect (+3). 01273_ Slammed into B-48 Gladiator. 01275_ System corrupted: Heat flow error (+125). 01278_ C-30 ARC bursts open, deploying its payload. 01278_ S-27 Virus unfolds itself. 01280_ Beams of light sweep through the air. An alarm sounds. 01312_ Extracted 150 matter. 01314_ Acquired Com. Matter Pod. 01317_ System corrupted: Heat flow error (+116). 01319_ S-27 Virus destroyed. 01319_ Adv. Weight Redist. System destroyed. 01319_ Destroyed Adv. Weight Redist. System. 01319_ S-27 Virus destroyed. Map ----- +----------------------------------------------------+ | #?????????????????????????????????????????? | | #?????????????????????????????????????????? | | #?????????????????????????????????????????? | | #?????????????????????????????????????????? | | #?????????????????????????????????????????? | | #?????????????????????????????????????????? | | #?????????????????????????????????????????? | | #?????????????????????????????????????????? | | ########??????????????????????????????????? | | #??????????????????????????????????? | | ###### #??????????????????????????????????? | | #????# #??????????????????????????????????? | | #????# #??????????????????????????????????? | | ###### #########T#####????????????????????? | | ?????????????????? | | ?????????????????? | | ?????????????????? | | ######## ############### #??????????????????? | | ???????# #??????????????????????????????????? | | ???????# #??????????????????????????????????? | | ???????# #??????????????????????????????????? | | ???????# #??????????????????????????????????? | | ???????# ##"""#######???????????????????????? | | ???????# ##??#####???????????????? | | ???????##########" ## # #???????????????? | | ????????????????#" ### @!!###""""?????????? | | ????????????????#" =%%= #????????? | | ????????????????#" ##[ * !!#######?????????? | | ????????????????#" ## ## #???????????????? | | ????????????????#"""###?#####???????????????? | | ????????????????#####???????????????????????? | | ????????????????????????????????????????????? | | ????????????????????????????????????????????? | | ????????????????????????????????????????????? | | ????????????????????????????????????????????? | | ????????????????????????????????????????????? | | ????????????????????????????????????????????? | | ????????????????????????????????????????????? | | ????????????????????????????????????????????? | | ????????????????????????????????????????????? | | ????????????????????????????????????????????? | | ????????????????????????????????????????????? | | ????????????????????????????????????????????? | | ????????????????????????????????????????????? | | ????????????????????????????????????????????? | | ????????????????????????????????????????????? | | | | | | | | | +----------------------------------------------------+ Best States ------------- Heat Dissipation 38 Energy Generation 31 Energy Capacity 520 Matter Stores 269 Matter Capacity 450 Sight Range 16 Terrain Scan Density 10 Additional Mass Support 9 Armor Coverage 225 Core Shielding 20 Evasion (%) 62 Matter Filtering 30 Item Schematics ----------------- None Robot Schematics ------------------ None Fabricated ------------ Nothing Alien Tech Used ----------------- None Achievements -------------- None Challenges ------------ None Game ------ Seed NavigationNullArmor Manual? 0 Play Time 00:23:10 Cumulative 9.5 hours Start 2024.08.24 @ 13:15:35 End 2024.08.24 @ 13:38:12 Sessions 1 Manual Loads 0 Difficulty Rogue Special Mode None Game No. 25 Rogue 24 Adventurer 1 Explorer 0 Win Type - Total 0 Types 0/0/0/0/0/0/0/0/0 Lore% 3 Gallery% 14 Achievement% 12 Wizard Run 0 Options --------- Layout 2 ASCII 0 Keyboard 1 Movement Numpad Keybinds 0 Fullscreen 1 Font 24/Smallcaps Map View 50x44 Zoom Use 0% Tactical HUD 1 Map Filters NONE Filters NONE Steam 1 RUN: e575a38a-7457-4a7c-9409-b7850d6f7bb1